Cogmind - Beta 14 @@@ ROGUE MODE // 2024.11.02 @ 00:40:03 Player: BigChungusGaming Result: Destroyed by Y-45 Defender with Heavy Assault Rifle Performance ------------- Evolutions (2) 1000 Regions Visited (4) 800 Robots Destroyed (66) 330 Value Destroyed (1949) 1949 Prototype IDs (0) 0 Alien Tech Used (0) 0 Bonus (16) 16 TOTAL SCORE: 4095 Bonus ------- High Alert Combat Kills 16 Cogmind --------- Core Integrity 0/550 Matter 230/300 Energy 99/100 System Corruption 0% Temperature Cool (9) Movement Core (50) Location -8/Materials Parts ------- > --- POWER (1) -------- (None) > --- PROPULSION (3) --- (None) > --- UTILITY (3) ------ (None) > --- WEAPON (4) ------- (None) > --- INVENTORY (5) ---- Light Nuclear Core Light Treads Improved Treads Improved Heat Sink Hardened Medium Armor Plating Peak State ------------ > --- POWER ------------ Light Nuclear Core > --- PROPULSION ------- Aluminum Leg Improved Aluminum Leg > --- UTILITY ---------- Improved Heat Sink Small Storage Unit Improved Light Armor Plating > --- WEAPON ----------- Field Laser Heavy Assault Rifle Shotgun Gauss Rifle > --- INVENTORY -------- Ion Engine Light Treads Light Treads Improved Treads Improved Heat Sink Autogun Shotgun [Rating: 25] Favorites ----------- Power Improved Ion Engine Engine Improved Ion Engine Power Core Light Nuclear Core Propulsion Aluminum Leg Leg Aluminum Leg Utility Small Storage Unit Device Improved Heat Sink Storage Small Storage Unit Protection Light Armor Plating Weapon Autogun Energy Gun Particle Gun Ballistic Gun Autogun Build | -11 -10 -9 -9 -8 ------- Run | Yrd Mat Mat Min Mat Slots Evolved 4 | . . 2 . 2 Power . | . . . . . Propulsion 1 | . . . . 1 Utility 1 | . . 1 . . Weapon 2 | . . 1 . 1 Parts Attached 47 | 7 3 10 8 19 Power 6 | 1 . 2 . 3 Engine 4 | 1 . 2 . 1 Core 2 | . . . . 2 Reactor . | . . . . . Propulsion 13 | 2 . 3 5 3 Treads . | . . . . . Leg 13 | 2 . 3 5 3 Wheel . | . . . . . Hover . | . . . . . Flight . | . . . . . Utility 11 | 1 2 1 3 4 Device 3 | . . . 1 2 Storage 4 | 1 1 . 2 . Processor . | . . . . . Hackware . | . . . . . Protection 4 | . 1 1 . 2 Artifact . | . . . . . Weapon 17 | 3 1 4 . 9 Energy Gun 3 | 1 . 1 . 1 Energy Cannon . | . . . . . Ballistic Gun 14 | 2 1 3 . 8 Ballistic Cannon . | . . . . . Launcher . | . . . . . Special Weapon . | . . . . . Impact Weapon . | . . . . . Slashing Weapon . | . . . . . Piercing Weapon . | . . . . . Special Melee Weapon . | . . . . . Unidentified Prototypes . | . . . . . Parts Lost 17 | . . 1 1 15 Power 2 | . . . . 2 Propulsion 4 | . . . . 4 Utility 3 | . . 1 1 1 Weapon 8 | . . . . 8 Highest Loss Streak 9 | . . 1 1 9 To Critical Strikes 2 | . . . . 2 Average Slot Usage (%) 90 | . 99 95 87 85 Engine 10 | . 14 11 11 6 Leg 22 | . 28 22 21 19 Device 6 | . . . 10 8 Storage 11 | . 20 11 11 8 Protection 7 | . 7 17 . 7 Energy Gun 7 | . . 7 11 6 Ballistic Gun 24 | . 28 25 22 25 Peak Build Rating 25 | 6 7 14 18 25 Average Rating 14 | 5 6 12 15 20 On Entrance 8 | . 6 7 13 16 Naked Turns 24 | . . . . 24 Heaviest Build 57 | 11 14 27 57 32 Greatest Support 33 | 20 20 20 26 33 Greatest Overweight (x) 2 | 1 . 1 2 2 Average Overweight (x) . | . . . . . Largest Inventory Capacity 20 | 8 8 8 20 8 Average Capacity 7 | 7 8 8 8 7 Most Carried 8 | 6 7 8 8 8 Average Carried 7 | 3 6 7 8 7 Final Capacity 8 | 8 8 8 8 5 Final Carried 8 | 6 7 8 8 5 Class Distribution -------------------- 35% | Scavenger-Tank 34% | Scavenger-Gunner 17% | Mutant 7% | Tank 4% | Gunner Dominant Class ---------------- Mutant | -10/Materials Scavenger-Tank | -9/Materials Scavenger-Gunner | -9/Mines Scavenger-Tank | -8/Materials Resources | -11 -10 -9 -9 -8 ----------- Run | Yrd Mat Mat Min Mat Matter Collected 1770 | 175 67 468 366 694 Remotely . | . . . . . Salvage Created 2223 | . 95 724 495 909 Parts 147 | . 12 46 43 46 Haulers Intercepted . | . . . . . Recyclers Shooed 3 | . . 3 . . Parts Field Recycled . | . . . . . Retrieved Matter . | . . . . . Parts Self-Destructed . | . . . . . Prevented . | . . . . . Kills | -11 -10 -9 -9 -8 ------- Run | Yrd Mat Mat Min Mat Combat Hostiles Destroyed 61 | . 6 18 20 17 Guns 60 | . 6 18 19 17 AOE 1 | . . . 1 . Classes Destroyed 10 | . 1 4 1 4 Worker 1 | . . . . 1 Builder 1 | . . . . 1 Recycler 2 | . . . 1 1 Watcher 1 | . . . . 1 Swarmer 23 | . 6 3 12 2 Grunt 27 | . . 10 7 10 Brawler 2 | . . 1 1 . Duelist 1 | . . 1 . . Sentry 6 | . . 3 . 3 Hunter 2 | . . . . 2 Best Kill Streak 5 | . 3 5 5 5 Combat Bots Only 5 | . 3 5 4 4 Max Kills in Single Turn 2 | . 1 2 2 2 Gunslinging 1 | . . . 1 . Exploded 1 | . . . 1 . Melee . | . . . . . Uniques/NPCs Destroyed . | . . . . . Combat | -11 -10 -9 -9 -8 -------- Run | Yrd Mat Mat Min Mat Hostile Shots Fired 359 | . 17 79 60 203 Missed 106 | . 10 29 18 49 Damage Taken 3275 | . 89 604 394 2188 Core 723 | . 31 67 64 561 Absorbed by Shields . | . . . . . Core Remaining (%) 84 | 100 87 . 67 . Volleys Fired 155 | . 11 41 42 61 Largest 4 | . 2 3 3 4 Hottest 137 | . 40 111 111 137 Shots Fired 470 | . 22 121 124 203 Gun 470 | . 22 121 124 203 Cannon . | . . . . . Launcher . | . . . . . Special . | . . . . . Kinetic 376 | . 22 97 84 173 Thermal 94 | . . 24 40 30 Explosive . | . . . . . Electromagnetic . | . . . . . Robot Hit Streak 7 | . 2 5 7 7 Robot Miss Streak 6 | . 3 6 5 6 Penetration Max . | . . . . . Secondary Targets 14 | . . 4 8 2 Max Gunslinging Chain 2 | . . 1 2 1 Shots Hit Robots 248 | . 9 64 59 116 Core Hits 111 | . 7 32 23 49 Critical Kills . | . . . . . Critical Parts Destroyed 1 | . . . . 1 Critical Strikes 2 | . . 1 . 1 Burn 1 | . . 1 . . Destroy 1 | . . . . 1 Melee Attacks . | . . . . . Impact . | . . . . . Slashing . | . . . . . Piercing . | . . . . . Sneak Attacks . | . . . . . Combat Hostiles . | . . . . . Follow-up Attacks . | . . . . . Damage Inflicted 3885 | . 88 869 1077 1851 Guns 3669 | . 88 869 879 1833 Cannons . | . . . . . Explosions 188 | . . . 188 . Melee . | . . . . . Ramming 28 | . . . 10 18 Kinetic 3026 | . 88 722 646 1570 Thermal 831 | . . 147 421 263 Explosive . | . . . . . Electromagnetic . | . . . . . Impact . | . . . . . Slashing . | . . . . . Piercing . | . . . . . Highest Corruption . | . . . . . Average Corruption . | . . . . . Corruption Purged . | . . . . . Corruption Blocked . | . . . . . Overload Shots . | . . . . . Overflow Damage 10 | . . . 10 . Projectiles . | . . . . . Explosions 10 | . . . 10 . Melee . | . . . . . Knockbacks 1 | . . . . 1 Impact 1 | . . . . 1 Kinetic . | . . . . . Secondary . | . . . . . Self-Inflicted Damage . | . . . . . Shots . | . . . . . Rammed . | . . . . . Targets Rammed 9 | . . 2 4 3 Kicked 9 | . . 2 4 3 Crushed . | . . . . . Highest Temperature 315 | . 12 297 315 204 Average Temperature 82 | . 5 97 91 51 Received Heat Transfer 1224 | . . 261 81 882 Effects 1 | . . . 1 . Energy Bleed 1 | . . . 1 . Siege Activations . | . . . . . Robots Corrupted . | . . . . . Combat Hostiles . | . . . . . Parts Fried . | . . . . . Impact Corruptions . | . . . . . Robots Melted . | . . . . . Combat Hostiles . | . . . . . Parts Melted . | . . . . . Heat Transferred 1791 | . . 444 755 592 Parts Sabotaged . | . . . . . Parts Stolen . | . . . . . Parts Stripped . | . . . . . Power Chain Reactions . | . . . . . Alert | -11 -10 -9 -9 -8 ------- Run | Yrd Mat Mat Min Mat Peak Influence 436 | . 269 349 436 367 Initial 135 | . . 28 135 91 Average 229 | . 122 195 329 179 Maximum Alert Level 2 | . 1 1 2 1 Low Security (%) 42 | 100 79 64 . 65 Level 1 47 | . 20 35 75 34 Level 2 9 | . . . 24 . Level 3 . | . . . . . Level 4 . | . . . . . Level 5 . | . . . . . High Security . | . . . . . Max Security . | . . . . . Squads Dispatched 7 | . . 2 . 5 Investigation 1 | . . . . 1 Extermination . | . . . . . Reinforcement 4 | . . 2 . 2 Assault . | . . . . . Garrison 2 | . . . . 2 Intercept . | . . . . . Searches Triggered . | . . . . . Construction Impeded 1 | . . . . 1 Haulers Reinforced . | . . . . . Active Scanning Responses . | . . . . . Cargo Convoy Interrupts . | . . . . . Stealth | -11 -10 -9 -9 -8 --------- Run | Yrd Mat Mat Min Mat Distress Signals 8 | . 2 2 1 3 Communications Jammed . | . . . . . Distress Signals . | . . . . . Times Spotted 79 | . 11 21 20 27 Peak Tracking Total 7 | . 5 5 4 7 Tactical Retreats 5 | . 2 1 . 2 Traps | -11 -10 -9 -9 -8 ------- Run | Yrd Mat Mat Min Mat Traps Triggered 1 | . . . . 1 Indirectly . | . . . . . Trap Hack Attempts . | . . . . . Triggered . | . . . . . Disarmed . | . . . . . Reprogrammed . | . . . . . Reused . | . . . . . Traps Extracted . | . . . . . Installed . | . . . . . Triggered 1 | . . . 1 . Machines | -11 -10 -9 -9 -8 ---------- Run | Yrd Mat Mat Min Mat Machines Disabled 9 | . . 2 5 2 Max in Single Turn 5 | . . 1 5 1 Machines Repaired . | . . . . . Machines Dismantled . | . . . . . Machines Sabotaged . | . . . . . Overloaded Fab Kills . | . . . . . Hacking | -11 -10 -9 -9 -8 --------- Run | Yrd Mat Mat Min Mat Machines Accessed 4 | . 2 . 1 1 Terminals 4 | . 2 . 1 1 Fabricators . | . . . . . Repair Stations . | . . . . . Recycling Units . | . . . . . Scanalyzers . | . . . . . Garrison Access . | . . . . . Total Hacks 9 | . 5 . 3 1 Successful 8 | . 5 . 2 1 Failed 1 | . . . 1 . Catastrophic . | . . . . . Database Lockouts . | . . . . . Manual 1 | . 1 . . . Terminals 9 | . 5 . 3 1 Fabricators . | . . . . . Repair Stations . | . . . . . Recycling Units . | . . . . . Scanalyzers . | . . . . . Garrison Access . | . . . . . Terminal Hacks 8 | . 5 . 2 1 Record 6 | . 4 . 2 . Alert Level 1 | . . . . 1 Locate Traps 1 | . 1 . . . Fabricator Hacks . | . . . . . Repair Station Hacks . | . . . . . Recycling Unit Hacks . | . . . . . Scanalyzer . | . . . . . Garrison Access Hacks . | . . . . . Unauthorized Hacks . | . . . . . Terminals . | . . . . . Fabricators . | . . . . . Repair Stations . | . . . . . Recycling Units . | . . . . . Scanalyzers . | . . . . . Garrison Access . | . . . . . Data Cores Recovered . | . . . . . Used . | . . . . . Hacking Detections 2 | . 1 . 1 . Full Trace Events . | . . . . . Feedback Events . | . . . . . Feedback Blocked . | . . . . . Robot Schematics Acquired . | . . . . . Robots Built . | . . . . . Authchips . | . . . . . Time . | . . . . . Total Robot Build Rating . | . . . . . Part Schematics Acquired . | . . . . . Parts Built . | . . . . . Authchips . | . . . . . Time . | . . . . . Total Part Build Rating . | . . . . . Parts Repaired . | . . . . . Time . | . . . . . Parts Recycled . | . . . . . Recycled Matter . | . . . . . Retrieved Matter . | . . . . . Retrieved Components . | . . . . . Parts Scanalyzed . | . . . . . Part Schematics Acquired . | . . . . . Parts Damaged . | . . . . . Bothacking | -11 -10 -9 -9 -8 ------------ Run | Yrd Mat Mat Min Mat Used RIF Installer . | . . . . . Robots Hacked . | . . . . . Non-combat . | . . . . . Combat . | . . . . . Robot Hacks Applied . | . . . . . Relay Couplers Released . | . . . . . Fabnet Peak Effective % . | . . . . . Robots Rewired . | . . . . . Allies Hacked . | . . . . . Hacks Repelled . | . . . . . Allies | -11 -10 -9 -9 -8 -------- Run | Yrd Mat Mat Min Mat Total Allies . | . . . . . Largest Group . | . . . . . Highest-Rated Group . | . . . . . Highest-Rated Ally . | . . . . . Total Orders . | . . . . . Ally Attacks . | . . . . . Total Damage . | . . . . . Kills . | . . . . . Allies Corrupted . | . . . . . Allies Melted . | . . . . . Intel | -11 -10 -9 -9 -8 ------- Run | Yrd Mat Mat Min Mat Robot Analysis Total . | . . . . . Derelict Logs Recovered 1 | . . . 1 . Drone Launches . | . . . . . Drone Recoveries . | . . . . . Exploration | -11 -10 -9 -9 -8 ------------- Run | Yrd Mat Mat Min Mat Turns Passed 3376 | 95 459 757 1340 725 Spaces Moved 1878 | 71 344 343 760 360 Core 53 | 9 . . . 44 Treads . | . . . . . Legs 1825 | 62 344 343 760 316 Wheels . | . . . . . Hover . | . . . . . Flight . | . . . . . Fastest Speed 50 | 50 120 120 120 50 Average Speed 147 | 111 120 174 156 137 Slowest Speed 260 | 120 120 190 260 260 Overloaded Moves . | . . . . . Propulsion Burnouts . | . . . . . Robots Hopped . | . . . . . Cave-ins Triggered . | . . . . . Exploration Rate (%) 40 | 4 43 27 96 34 Regions Visited 4 Branch Regions 1 Pre-discovered Areas 1 | . . . 1 . Known Exits Taken . | . . . . . Unknown Exits Taken 4 | 1 1 1 1 . Scrap Searched 2 | . . . 2 . Spaces Dug . | . . . . . Terrain Destroyed 22 | . . . 19 3 Melee . | . . . . . Projectile 3 | . . . . 3 AOE 19 | . . . 19 . Terrain Rammed . | . . . . . Walls Destroyed . | . . . . . Machines Disabled . | . . . . . Actions | -11 -10 -9 -9 -8 --------- Run | Yrd Mat Mat Min Mat Total 2156 | 83 369 425 820 459 Wait 11 | . 11 . . . Move 1874 | 70 343 342 759 360 Hop . | . . . . . Pick Up 22 | 6 . 12 . 4 Fast Attach 24 | 6 2 2 7 7 Attach 7 | . . 1 . 6 Detach . | . . . . . Swap 16 | 1 1 7 1 6 Drop 38 | . 1 18 7 12 Fire 155 | . 11 41 42 61 Melee . | . . . . . Ram . | . . . . . Kick 9 | . . 2 4 3 Crush . | . . . . . Escape Stasis . | . . . . . Rewire . | . . . . . Trap . | . . . . . Miscellaneous . | . . . . . Route ------- -11/Scrapyard -10/Materials -9/Materials -9/Mines (discovered 2 exits: *Mat x2) -8/Materials History --------- Turn | Location | Event 6 | -11/Scrapyard | Discovered new exit (range 16) 96 | -11/Scrapyard | Entered Materials 317 | -10/Materials | Build established: Mutant 516 | -10/Materials | Discovered new exit (range 15) 555 | -10/Materials | Entered another Materials area 555 | -9/Materials | Evolved 2 slots: Utility x1, Weapon x1 1066 | -9/Materials | Build established: Scavenger-Tank 1166 | -9/Materials | Discovered new exit (range 15) 1312 | -9/Materials | Entered Mines 1616 | -9/Mines | Discovered new exit (range 5) 1702 | -9/Mines | Build established: Scavenger-Gunner 2066 | -9/Mines | Discovered new exit (range 10) 2507 | -9/Mines | Learned location of Zion (-6) 2652 | -9/Mines | Entered Materials 2652 | -8/Materials | Evolved 2 slots: Propulsion x1, Weapon x1 3173 | -8/Materials | Build established: Scavenger-Tank 3258 | -8/Materials | Garrison activated, responded to threat 3321 | -8/Materials | Core integrity fell below 50% 3350 | -8/Materials | Core integrity fell below 20% 3377 | -8/Materials | Destroyed by Y-45 Defender with Heavy Assault Rifle Last Messages --------------- Acquired 7 matter. Acquired 54 matter. K-01 Serf collects debris. Slug penetrates Door. Lgt. Nuclear Core destroyed. K-01 Serf collects debris. Carbon-fiber Leg destroyed. K-01 Serf collects debris. Penetrated by Slug. Shotgun destroyed. K-01 Serf collects debris. Dropped Hvy. Assault Rifle. Penetrated by Slug. Dropped Imp. Heat Sink. Dropped Sml. Storage Unit. Critical hit (Burn: +37). Acquired 66 matter. K-01 Serf collects debris. Dropped Lgt. Treads. Acquired Hrd. Medium Armor Plating. Map ----- +----------------------------------------------------+ | ???????????????????# #???????????# """""= | | ???????????????????##########???????????# """"" | | ????????????????????????????????????????# """ | | ????????????????????????????????????????# % != | | ?????????????????????????????##################/## | | ?????????????????????????????# =[ | | ?????????????????????????????# !%[* %[ | | ?????????????????????????????# = | | ?????????????????????????????# ###########/## | | ?????????????????????????????# #???# !* = | | ?????????????????????????????# #???#* %=%[ | | ????????????????????#???#????# #???#= %%"""" | | ????????????????????#!??!#???# #???#! "%"""" | | ????????????????????? !???# #####*!"""""" | | ??????????????????????? ???# *=! [%%%""" | | ????????????????????????# #####+#########[""""""" | | ????????????????????????# # #??#=! | | ????????????????????????# + #??####+## ## | | ????????????????????????# # #?????# #??#? | | ????????????????????????+ Y # """ ####### #???? | | ????????????????????????# # """""= / #???? | | ????????????????????????# # """"" #########???? | | ????????????????????????# # """"" #???????????? | | ????????????????????????# # """ #???????????? | | ????????????????????????# + !#???????????? | | ????????????????????????#@ ##########???????????? | | ????????????????????????+ #????????????????????? | | ????????????????????????# w#????????????????????? | | ????????????????????????# #????????????????????? | | ????????????????????????# #????????????????????? | | ????????????????????????# #????????????????????? | | ????????????????????????# #????????????????????? | | ????????????????????????# #????????????????????? | | ????????????????????????# #????????????????????? | | ????????????????????????# #????????????????????? | | ????????????????????????# #????????????????????? | | ????????????????????????# #????????????????????? | | ????????????????????????# #????????????????????? | | ????????????????????????# #????????????????????? | | ????????????????????????# #????????????????????? | | ????????????????????????? ?????????????????????? | | ?????????????????????????????????????????????????? | | ?????????????????????????????????????????????????? | | ?????????????????????????????????????????????????? | | ?????????????????????????????????????????????????? | | ?????????????????????????????????????????????????? | | ?????????????????????????????????????????????????? | | ?????????????????????????????????????????????????? | | ?????????????????????????????????????????????????? | | ?????????????????????????????????????????????????? | +----------------------------------------------------+ Best States ------------- Heat Dissipation 45 Energy Generation 14 Energy Capacity 265 Matter Stores 300 Matter Capacity 350 Sight Range 16 Terrain Scan Density 10 Armor Coverage 300 Evasion (%) 55 Item Schematics ----------------- None Robot Schematics ------------------ None Fabricated ------------ Nothing Alien Tech Used ----------------- None Achievements -------------- None Challenges ------------ None Game ------ Seed CryofiberMappingPropulsion Manual? 0 Play Time 00:26:13 Cumulative 10.5 hours Start 2024.11.02 @ 00:09:17 End 2024.11.02 @ 00:40:03 Sessions 1 Manual Loads 0 Difficulty Rogue Special Mode None Game No. 19 Rogue 19 Adventurer 0 Explorer 0 Win Type - Total 0 Types 0/0/0/0/0/0/0/0/0 Lore% 12 Gallery% 16 Achievement% 14 Wizard Run 0 Options --------- Layout 1 ASCII 0 Keyboard 0 Movement Arrows Keybinds 0 Fullscreen 1 Font 32/SmallcapsGlow Map View 50x35 Zoom Use 0% Tactical HUD 0 Map Filters NONE Filters NONE Steam 1 RUN: fdb02805-8440-4178-b47e-af80a5e87ea5